fUST/lending_fUST_20240110
["ID","MTS","AMOUNT","RATE_DAILY","PERIOD"]
[310971220,1704838239162,-500.0,0.00023288,2]
[310971222,1704838239171,-208.2577063,0.00023288,2]
[310971224,1704838239181,-469.49890374,0.00023288,2]
[310971226,1704838239191,-180.27452248,0.00023288,2]
[310971228,1704838239201,-500.0,0.00023288,2]
[310971230,1704838239210,-455.34707612,0.00023288,2]
[310971232,1704838239219,-227.00650424,0.00023288,2]
[310971234,1704838239229,-499.99999999,0.00023288,2]
[310971236,1704838239239,-1221.1925829,0.00023288,2]
[310971238,1704838239249,-166.666666,0.00023456,2]
[310971240,1704838239258,-166.666666,0.00023969,2]
[310971241,1704838239268,-242.44438478,0.00023997,2]
[310971242,1704838239278,-21464.18264369,0.00023998,2]
[310971244,1704838239287,-155.01550155,0.00024,2]
[310971246,1704838239296,-500.0,0.00024,2]
[310971247,1704838239305,-166.666666,0.00024482,2]
[310971249,1704838239314,-3000.0,0.00025,2]
[310971251,1704838239323,-4709.99124251,0.00025,2]
[310971253,1704838239332,-783.16983902,0.00025,2]
[310971255,1704838239341,-613.86507578,0.00025,2]
[310971257,1704838239351,-500.0,0.00025,2]
[310971260,1704838239360,-978.88032498,0.000259,2]
[310971261,1704838239370,-525.7750246,0.00026,2]
[310971263,1704838239379,-500.0,0.00026,2]
[310971265,1704838239388,-622.33707897,0.000264,2]
[310971266,1704838239397,-317.92199098,0.00026709,2]
[310971267,1704838239406,-496.879336,0.0002698,5]
[310971268,1704838239415,-733.24734884,0.00027,2]
[310971269,1704838239425,-677.59028072,0.00027,2]
[310971270,1704838239434,-9569.37,0.00027397,3]
[310971271,1704838239444,-7974.48,0.00027397,3]
[310971272,1704838239453,-6645.4,0.00027397,3]
[310971273,1704838239462,-620.11685395,0.0002772,2]
[310971274,1704838239472,-1982.4602042,0.00029,2]
[310971275,1704838239481,-830.68320521,0.00029,2]
[310971276,1704838239490,-155.0,0.00029,2]
[310971277,1704838239499,-620.0058427,0.00029106,2]
[310971279,1704838239508,-500.0,0.00029789,4]
[310971281,1704838239517,-187.01212423,0.00029789,4]
[310971283,1704838239529,-449.69179159,0.00029789,4]
[310971285,1704838239538,-500.0,0.00029789,4]
[310971286,1704838239548,-482.63395556,0.00029789,4]
[310971287,1704838239557,-210737.91955555,0.0002979,7]
[310971288,1704838239566,-463.25005188,0.0003,4]
[310971289,1704838239575,-448.35344784,0.0003,2]
[310971290,1704838239584,-33103.14530728,0.0003,2]
[310971292,1704838239711,-4118.85,0.0003,2]
[310971294,1704838239723,-432.85647337,0.0003,2]
[310971296,1704838239734,-34243.78793651,0.0003,2]
[310971298,1704838239744,-29043.98377294,0.0003,3]
[310971300,1704838239752,-243.70040844,0.0003,4]
[310971302,1704838239762,-27580.84199351,0.0003,10]
[310971455,1704838241181,-15211.94949045,0.0003,10]
[310971457,1704838241191,-18543.86921372,0.0003,2]
[310971459,1704838241201,-155.0,0.0003037,2]
[310971461,1704838241210,-2171.78014259,0.00030554,2]
[310971463,1704838241219,-620.00029213,0.00030561,2]
[310971465,1704838241228,-3080.30416313,0.00030974,4]
[310971467,1704838241237,-5015.18,0.00030987,2]
[310971469,1704838241246,-5015.18,0.00030987,2]
[310971471,1704838241255,-180.98735915,0.00030987,2]
[310971473,1704838241266,-4834.19264085,0.00030987,2]
[310971475,1704838241278,-5015.18,0.00030987,2]
[310971477,1704838241287,-1025.65013164,0.00030987,2]
[310971479,1704838241298,-500.3600126,0.00030987,2]
[310971481,1704838241308,-273.072,0.00030987,2]
[310971485,1704838241330,-569.20690962,0.00030987,2]
[310972032,1704838246880,-227.88433442,0.00030985,4]
[310972033,1704838246889,-410.25634625,0.00030986,4]
[310972036,1704838246901,-978.34633277,0.00030986,4]
[310972049,1704838246999,-5070.81729527,0.00030986,4]
[310972051,1704838247008,-351.49308711,0.00030986,4]
[310972053,1704838247018,-159.26365698,0.00030986,4]
[310972056,1704838247031,-704.89340071,0.00030986,4]
[310972058,1704838247040,-1207.75038935,0.0003099,3]
[310972289,1704838249477,-361.0,0.00030987,2]
[310972291,1704838249487,-4330.07961065,0.0003099,3]
[310972293,1704838249497,-706.05404719,0.00030998,4]
[310972295,1704838249506,-487.97208467,0.00030999,4]
[310972297,1704838249518,-361.53035797,0.00030999,4]
[310972299,1704838249527,-788.5946676,0.00030999,4]
[310972301,1704838249537,-1325.41915127,0.00030999,4]
[310972303,1704838249546,-103942.59633946,0.00031,4]
[310972305,1704838249556,-155.0,0.0003174,2]
[310972307,1704838249566,-680.81316922,0.000318,3]
[310972309,1704838249575,-54591.73225073,0.00032,10]
[310972311,1704838249585,-20793.95518784,0.00032,15]
[310972313,1704838249596,-1086.65015854,0.00032421,2]
[310972315,1704838249606,-500.0,0.00032876,7]
[310972317,1704838249615,-500.0,0.00032876,7]
[310972319,1704838249625,-227.1241778,0.00032876,7]
[310972321,1704838249635,-591.51030709,0.00032876,7]
[310972323,1704838249645,-510.20589186,0.00032876,7]
[310972325,1704838249655,-54424.13393841,0.00032963,3]
[310972327,1704838249665,-16588.41463318,0.00032973,3]
[310972329,1704838249675,-3493.64890187,0.00032991,3]
[310972331,1704838249685,-546.95250147,0.00033,2]
[310972333,1704838249694,-155.0,0.0003311,2]
[310972335,1704838249706,-64357.91098252,0.000338,2]
[310972337,1704838249715,-1000.0,0.00034,7]
[310972339,1704838249724,-152.3890024,0.00034446,7]
[310972341,1704838249734,-162.39315149,0.00034478,7]
[310972343,1704838249744,-156.1230049,0.0003448,2]
[310972345,1704838249753,-4000.0,0.00034521,2]
[310972346,1704838249762,-162.39315149,0.00034712,7]
[310972348,1704838249772,-12220.9100946,0.000349,5]
[310972350,1704838249782,-332.52969855,0.00035,4]
[310972353,1704838249793,-7803.1787706,0.00035,4]
[310972354,1704838249803,-6802.96007234,0.00035,4]
[310972356,1704838249813,-591.11085398,0.00035,2]
[310972359,1704838249824,-236.51854,0.00035,7]
[310972361,1704838249833,-2620.92,0.00035,120]
[310972363,1704838249844,-503.496731,0.00035,7]
[310972365,1704838249854,-2291.0,0.00035,7]
[310972367,1704838249863,-162.39315149,0.0003523,7]
[310972369,1704838249873,-304.67621055,0.00035241,4]
[310972371,1704838249883,-174.68474877,0.00035242,4]
[310972373,1704838249894,-7713.40976543,0.00035254,4]
[310972375,1704838249905,-16129.31059202,0.00035256,4]
[310972377,1704838249915,-162.39315149,0.00035314,7]
[310972379,1704838249925,-154.8915759,0.00035436,2]
[310972381,1704838249936,-162.39315149,0.00035479,7]
[310972383,1704838249945,-45984.37461176,0.00035514,2]
[310972385,1704838249955,-32098.36745887,0.00035516,3]
[310972387,1704838249965,-151.51515152,0.00035543,2]
[310972389,1704838249975,-2870.14969708,0.00035612,4]
[310972391,1704838249985,-198.40339102,0.00035612,4]
[310972393,1704838249996,-2706.88894651,0.00035612,4]
[310972395,1704838250005,-686.13630278,0.00035612,4]
[310972397,1704838250015,-178.24808117,0.00035612,4]
[310972399,1704838250028,-223.13923506,0.00035613,4]
[310972401,1704838250044,-606.05349002,0.00035614,4]
[310972403,1704838250055,-230.03642526,0.00035614,4]
[310972405,1704838250066,-211.17448075,0.00035614,4]
[310972407,1704838250076,-309.21329564,0.00035614,4]
[310972409,1704838250087,-180.17158715,0.00035614,4]
[310972411,1704838250096,-7902.71836862,0.00035614,2]
[310972413,1704838250106,-232.16946523,0.00035614,2]
[310972415,1704838250116,-1147.42883441,0.00035614,4]
[310972417,1704838250125,-309.69031278,0.00035614,4]
[310972419,1704838250135,-649.46848965,0.00035614,4]
[310972421,1704838250144,-1025.4344042,0.00035614,2]
[310972423,1704838250154,-4039.92201284,0.00035614,4]
[310972425,1704838250163,-216.76379443,0.00035615,4]
[310972427,1704838250172,-227.55857841,0.00035615,4]
[310972429,1704838250183,-2772.28,0.00035615,2]
[310972430,1704838250192,-2772.28,0.00035615,2]
[310972432,1704838250202,-2772.28,0.00035615,2]
[310972435,1704838250215,-2772.28,0.00035615,2]
[310972436,1704838250226,-2772.28,0.00035615,2]
[310972439,1704838250239,-2772.28,0.00035615,2]
[310972441,1704838250251,-500.0,0.00035616,2]
[310972443,1704838250260,-500.0,0.00035616,2]
[310972444,1704838250270,-643.66658219,0.00035616,2]
[310972446,1704838250282,-500.0,0.00035616,2]
[310972448,1704838250293,-500.0,0.00035616,2]
[310972450,1704838250304,-500.86593983,0.00035616,2]
[310972452,1704838250314,-500.0,0.00035616,2]
[310972454,1704838250324,-462.58873019,0.00035616,2]
[310972456,1704838250334,-232.48433794,0.00035616,2]
[310972458,1704838250344,-500.0,0.00035616,2]
[310972460,1704838250354,-500.0,0.00035616,2]
[310972462,1704838250364,-524.03,0.00035616,2]
[310972464,1704838250373,-500.0,0.00035616,2]
[310972466,1704838250383,-484.88564107,0.00035616,2]
[310972468,1704838250393,-500.0,0.00035616,2]
[310972470,1704838250403,-500.0,0.00035616,2]
[310972472,1704838250414,-535.89,0.00035616,2]
[310972474,1704838250424,-500.0,0.00035616,2]
[310972476,1704838250435,-500.0,0.00035616,2]
[310972478,1704838250444,-500.0,0.00035616,2]
[310972480,1704838250454,-500.0,0.00035616,2]
[310972482,1704838250465,-779.47,0.00035616,2]
[310972484,1704838250475,-500.0,0.00035616,2]
[310972486,1704838250486,-500.0,0.00035616,2]
[310972488,1704838250497,-500.0,0.00035616,2]
[310972490,1704838250508,-500.0,0.00035616,2]
[310972492,1704838250519,-500.0,0.00035616,2]
[310972494,1704838250533,-500.0,0.00035616,2]
[310972496,1704838250542,-500.0,0.00035616,2]
[310972498,1704838250552,-500.0,0.00035616,2]
[310972500,1704838250561,-500.0,0.00035616,2]
[310972502,1704838250572,-500.0,0.00035616,2]
[310972504,1704838250581,-500.0,0.00035616,2]
[310972506,1704838250591,-500.0,0.00035616,2]
[310972508,1704838250601,-500.0,0.00035616,2]
[310972510,1704838250611,-517.48025698,0.00035616,2]
[310972512,1704838250620,-502.96550116,0.00035616,2]
[310972514,1704838250630,-167.69414103,0.00035616,2]
[310972516,1704838250640,-503.6912404,0.00035616,2]
[310972518,1704838250649,-500.0,0.00035616,2]
[310972520,1704838250658,-500.0,0.00035616,2]
[310972522,1704838250667,-500.0,0.00035616,2]
[310972525,1704838250677,-500.0,0.00035616,2]
[310972526,1704838250686,-539.46030145,0.00035616,2]
[310972528,1704838250696,-500.0,0.00035616,2]
[310972531,1704838250706,-3947.0,0.00035616,2]
[310972533,1704838250715,-516.41,0.00035616,2]
[310972534,1704838250725,-500.0,0.00035616,2]
[310972536,1704838250734,-500.0,0.00035616,2]
[310972538,1704838250744,-604.64057332,0.00035616,2]
[310972540,1704838250754,-500.0,0.00035616,2]
[310972542,1704838250763,-500.0,0.00035616,2]
[310972544,1704838250773,-502.03444066,0.00035616,2]
[310972559,1704838250903,-500.0,0.00035616,2]
[310972561,1704838250914,-450.53978601,0.00035616,2]
[310972563,1704838250923,-500.0,0.00035616,2]
[310972565,1704838250933,-500.0,0.00035616,2]
[310972567,1704838250943,-1000.0,0.00035616,2]
[310972569,1704838250952,-500.0,0.00035616,2]
[310972571,1704838250966,-500.0,0.00035616,2]
[310972573,1704838250976,-176.84588182,0.00035616,2]
[310972575,1704838250985,-1425.09,0.00035616,2]
[310972577,1704838250995,-500.0,0.00035616,2]
[310972580,1704838251011,-518.29,0.00035616,2]
[310972582,1704838251021,-515.02051243,0.00035616,2]
[310972584,1704838251030,-500.0,0.00035616,2]
[310972586,1704838251040,-500.0,0.00035616,2]
[310972588,1704838251050,-501.10069018,0.00035616,2]
[310972590,1704838251060,-303.78797855,0.00035616,2]
[310972592,1704838251069,-165.26312866,0.00035616,2]
[310972594,1704838251077,-500.0,0.00035616,2]
[310972596,1704838251086,-500.0,0.00035616,2]
[310972598,1704838251096,-210.15599459,0.00035616,2]
[310972600,1704838251106,-500.0,0.00035616,2]
[310972602,1704838251115,-576.31,0.00035616,2]
[310972604,1704838251128,-357.58884199,0.00035616,2]
[310972606,1704838251138,-2345.66,0.00035616,2]
[310972608,1704838251147,-500.0,0.00035616,2]
[310972610,1704838251156,-502.23034535,0.00035616,2]
[310972612,1704838251165,-500.0,0.00035616,2]
[310972614,1704838251174,-500.0,0.00035616,2]
[310972616,1704838251183,-500.0,0.00035616,2]
[310972618,1704838251193,-500.0,0.00035616,2]
[310972620,1704838251202,-500.0,0.00035616,2]
[310972622,1704838251212,-504.17246542,0.00035616,2]
[310972624,1704838251221,-500.3727799,0.00035616,2]
[310972626,1704838251231,-500.0,0.00035616,2]
[310972628,1704838251240,-267.30766703,0.00035616,2]
[310972630,1704838251249,-500.21455608,0.00035616,2]
[310972632,1704838251258,-500.0,0.00035616,2]
[310972634,1704838251267,-640.72,0.00035616,2]
[310972636,1704838251276,-500.0,0.00035616,2]
[310972638,1704838251286,-500.0,0.00035616,2]
[310972640,1704838251296,-759.58,0.00035616,2]
[310972642,1704838251305,-500.0,0.00035616,2]
[310972644,1704838251315,-500.0,0.00035616,2]
[310972646,1704838251324,-500.0,0.00035616,2]
[310972648,1704838251333,-500.0,0.00035616,2]
[310972650,1704838251342,-500.0,0.00035616,2]
[310972652,1704838251351,-500.0,0.00035616,2]
[310972654,1704838251360,-2715.47,0.00035616,2]
[310972656,1704838251371,-567.32387945,0.00035616,2]
[310972658,1704838251380,-500.0,0.00035616,2]
[310972660,1704838251389,-500.0,0.00035616,2]
[310972662,1704838251399,-500.0,0.00035616,2]
[310972664,1704838251409,-500.0,0.00035616,2]
[310972666,1704838251418,-596.35,0.00035616,2]
[310972668,1704838251430,-500.0,0.00035616,2]
[310972670,1704838251440,-500.0,0.00035616,2]
[310972673,1704838251449,-500.0,0.00035616,2]
[310972674,1704838251459,-506.88634979,0.00035616,2]
[310972677,1704838251469,-500.0,0.00035616,2]
[310972678,1704838251479,-500.0,0.00035616,2]
[310972680,1704838251488,-500.0,0.00035616,2]
[310972683,1704838251500,-500.0,0.00035616,2]
[310972685,1704838251509,-500.0,0.00035616,2]
[310972687,1704838251518,-9762.02285107,0.00035616,10]
[310972689,1704838251527,-613.23157013,0.00035616,2]
[310972691,1704838251539,-532.93123084,0.00035616,2]
[310972693,1704838251548,-1800.44,0.00035616,2]
[310972694,1704838251558,-500.0039697,0.00035616,2]
[310972696,1704838251568,-500.0,0.00035616,2]
[310972699,1704838251578,-500.0,0.00035616,2]
[310972701,1704838251588,-500.0,0.00035616,2]
[310972703,1704838251598,-916.6,0.00035616,2]
[310972705,1704838251607,-500.78632076,0.00035616,2]
[310972707,1704838251616,-500.0,0.00035616,2]
[310972708,1704838251626,-500.0,0.00035616,2]
[310972710,1704838251636,-500.0,0.00035616,2]
[310972712,1704838251645,-518.22,0.00035616,2]
[310972714,1704838251654,-500.0,0.00035616,2]
[310972716,1704838251664,-500.0,0.00035616,2]
[310972718,1704838251673,-500.0,0.00035616,2]
[310972720,1704838251682,-312.38412643,0.00035616,2]
[310972722,1704838251691,-563.62061951,0.00035616,2]
[310972725,1704838251702,-500.0,0.00035616,2]
[310972727,1704838251711,-500.0,0.00035616,2]
[310972729,1704838251721,-156.10732819,0.00035616,2]
[310972731,1704838251731,-500.0,0.00035616,2]
[310972733,1704838251740,-500.0,0.00035616,2]
[310972735,1704838251750,-600.0,0.00035616,2]
[310972737,1704838251760,-500.0,0.00035616,2]
[310972739,1704838251770,-500.0,0.00035616,2]
[310972741,1704838251779,-500.0,0.00035616,2]
[310972743,1704838251792,-500.0,0.00035616,2]
[310972745,1704838251803,-500.0,0.00035616,2]
[310972747,1704838251812,-500.0,0.00035616,2]
[310972749,1704838251822,-500.0,0.00035616,2]
[310972751,1704838251831,-500.0,0.00035616,2]
[310972753,1704838251841,-598.44210115,0.00035616,2]
[310972755,1704838251850,-500.0,0.00035616,2]
[310972757,1704838251860,-500.0,0.00035616,2]
[310972759,1704838251869,-500.0,0.00035616,2]
[310972761,1704838251879,-500.0,0.00035616,2]
[310972763,1704838251888,-500.0,0.00035616,2]
[310972765,1704838251897,-500.0,0.00035616,5]
[310972767,1704838251907,-500.0,0.00035616,2]
[310972769,1704838251917,-500.0,0.00035616,2]
[310972771,1704838251927,-500.0,0.00035616,2]
[310972773,1704838251936,-1501.72,0.00035616,2]
[310972775,1704838251946,-2005.2,0.00035616,2]
[310972777,1704838251954,-626.10530072,0.00035616,2]
[310972779,1704838251963,-500.0,0.00035616,2]
[310972781,1704838251972,-500.0,0.00035616,2]
[310972783,1704838251981,-500.0,0.00035616,2]
[310972785,1704838251991,-500.0,0.00035616,2]
[310972786,1704838252000,-433.66898738,0.00035616,2]
[310972788,1704838252010,-500.0,0.00035616,2]
[310972789,1704838252019,-513.82641678,0.00035616,2]
[310972791,1704838252028,-500.0,0.00035616,2]
[310972793,1704838252043,-240.40878936,0.00035616,2]
[310972795,1704838252055,-500.55118604,0.00035616,2]
[310972797,1704838252063,-752.82,0.00035616,2]
[310972799,1704838252072,-500.0,0.00035616,2]
[310972801,1704838252082,-505.32809536,0.00035616,2]
[310972803,1704838252091,-500.0,0.00035616,2]
[310972805,1704838252099,-488.60322616,0.00035616,2]
[310972807,1704838252108,-500.0,0.00035616,2]
[310972809,1704838252117,-500.0,0.00035616,2]
[310972811,1704838252133,-1026.35,0.00035616,2]
[310972813,1704838252142,-500.0,0.00035616,2]
[310972815,1704838252151,-522.35965468,0.00035616,2]
[310972817,1704838252160,-519.36,0.00035616,2]
[310972820,1704838252175,-500.0,0.00035616,2]
[310972822,1704838252190,-500.0,0.00035616,2]
[310972825,1704838252200,-500.0,0.00035616,2]
[310972827,1704838252211,-500.0,0.00035616,2]
[310972829,1704838252220,-500.0,0.00035616,2]
[310972831,1704838252234,-2510.57,0.00035616,2]
[310972833,1704838252243,-530.69978644,0.00035616,2]
[310972835,1704838252253,-500.0,0.00035616,2]
[310972837,1704838252262,-500.0,0.00035616,2]
[310972839,1704838252271,-1602.28,0.00035616,2]
[310972841,1704838252281,-3910.65,0.00035616,2]
[310972843,1704838252293,-500.0,0.00035616,2]
[310972845,1704838252304,-667.15,0.00035616,2]
[310972847,1704838252313,-500.0,0.00035616,2]
[310972849,1704838252322,-500.0,0.00035616,2]
[310972851,1704838252332,-500.0,0.00035616,2]
[310972853,1704838252341,-626.56,0.00035616,2]
[310972855,1704838252351,-2102.7,0.00035616,2]
[310972857,1704838252360,-500.0,0.00035616,2]
[310972859,1704838252370,-1251.26,0.00035616,2]
[310972861,1704838252379,-1805.23,0.00035616,2]
[310972863,1704838252389,-500.0,0.00035616,2]
[310972866,1704838252399,-182.06893875,0.00035616,2]
[310972868,1704838252409,-500.0,0.00035616,2]
[310972870,1704838252420,-9117.97,0.00035616,2]
[310972872,1704838252430,-733.66,0.00035616,2]
[310972874,1704838252439,-500.0,0.00035616,2]
[310972876,1704838252449,-500.0,0.00035616,2]
[310972878,1704838252459,-530.81502069,0.00035616,2]
[310972880,1704838252468,-500.0,0.00035616,2]
[310972882,1704838252478,-472.46249936,0.00035616,2]
[310972884,1704838252488,-500.0,0.00035616,2]
[310972886,1704838252498,-500.0,0.00035616,2]
[310972888,1704838252508,-1000.0,0.00035616,2]
[310972890,1704838252518,-6205.49,0.00035616,2]
[310972892,1704838252528,-5989.65,0.00035616,2]
[310972894,1704838252540,-3817.94,0.00035616,2]
[310972896,1704838252550,-500.0,0.00035616,2]
[310972898,1704838252559,-501.00292591,0.00035616,2]
[310972900,1704838252569,-500.0,0.00035616,2]
[310972902,1704838252579,-500.0,0.00035616,2]
[310972904,1704838252589,-8612.74,0.00035616,2]
[310972906,1704838252600,-500.0,0.00035616,2]
[310972908,1704838252610,-1364.94,0.00035616,2]
[310972910,1704838252620,-48945.65,0.00035616,2]
[310972912,1704838252630,-500.0,0.00035616,2]
[310972914,1704838252640,-565.22,0.00035616,2]
[310972917,1704838252650,-500.0,0.00035616,2]
[310972919,1704838252661,-18316.9,0.00035616,2]
[310972921,1704838252671,-500.0,0.00035616,2]
[310972923,1704838252682,-500.0,0.00035616,2]
[310972925,1704838252691,-500.0,0.00035616,2]
[310972927,1704838252702,-500.0,0.00035616,2]
[310972929,1704838252712,-500.0,0.00035616,2]
[310972931,1704838252722,-500.0,0.00035616,2]
[310972932,1704838252731,-2075.56,0.00035616,2]
[310972935,1704838252741,-506.88833069,0.00035616,2]
[310972936,1704838252751,-500.0,0.00035616,2]
[310972939,1704838252761,-504.98246174,0.00035616,2]
[310972941,1704838252771,-540.05,0.00035616,2]
[310972943,1704838252782,-500.0,0.00035616,2]
[310972945,1704838252798,-500.0,0.00035616,2]
[310972946,1704838252808,-527.26,0.00035616,2]
[310972949,1704838252819,-500.0,0.00035616,2]
[310972950,1704838252830,-637.46644833,0.00035616,2]
[310972952,1704838252841,-500.0,0.00035616,2]
[310972954,1704838252850,-517.60631347,0.00035616,2]
[310972956,1704838252860,-516.92824822,0.00035616,2]
[310972958,1704838252870,-550.68178746,0.00035616,2]
[310972966,1704838252936,-500.0,0.00035616,2]
[310972968,1704838252946,-500.0,0.00035616,2]
[310972970,1704838252955,-500.0,0.00035616,2]
[310972972,1704838252964,-500.0,0.00035616,2]
[310972974,1704838252973,-500.0,0.00035616,2]
[310972976,1704838252983,-500.0,0.00035616,2]
[310972978,1704838252991,-1000.81,0.00035616,2]
[310972980,1704838253001,-500.0,0.00035616,2]
[310972982,1704838253010,-602.86210196,0.00035616,2]
[310972984,1704838253019,-503.99642735,0.00035616,2]
[310972986,1704838253028,-710.07,0.00035616,2]
[310972988,1704838253040,-500.0,0.00035616,2]
[310972990,1704838253049,-500.0,0.00035616,2]
[310972992,1704838253057,-1827.27,0.00035616,2]
[310972994,1704838253066,-500.0,0.00035616,2]
[310972996,1704838253075,-500.0,0.00035616,2]
[310972998,1704838253083,-500.0,0.00035616,2]
[310973000,1704838253092,-500.0,0.00035616,2]
[310973001,1704838253101,-500.0,0.00035616,2]
[310973003,1704838253110,-500.0,0.00035616,2]
[310973005,1704838253120,-4457.98,0.00035616,2]
[310973007,1704838253129,-2180.01,0.00035616,2]
[310973009,1704838253138,-500.0,0.00035616,2]
[310973011,1704838253148,-500.0,0.00035616,2]
[310973013,1704838253157,-500.0,0.00035616,2]
[310973015,1704838253166,-500.0,0.00035616,2]
[310973017,1704838253175,-3035.53,0.00035616,2]
[310973019,1704838253184,-500.0,0.00035616,2]
[310973021,1704838253193,-2649.2,0.00035616,2]
[310973023,1704838253203,-500.0,0.00035616,2]
[310973025,1704838253214,-500.0,0.00035616,2]
[310973027,1704838253226,-500.0,0.00035616,2]
[310973029,1704838253235,-500.0,0.00035616,2]
[310973031,1704838253245,-607.29,0.00035616,2]
[310973033,1704838253255,-500.0,0.00035616,2]
[310973035,1704838253264,-500.0,0.00035616,2]
[310973037,1704838253273,-500.0,0.00035616,2]
[310973039,1704838253282,-920.26,0.00035616,2]
[310973041,1704838253294,-1421.67,0.00035616,2]
[310973043,1704838253303,-500.0,0.00035616,2]
[310973045,1704838253312,-500.0,0.00035616,2]
[310973047,1704838253321,-500.0,0.00035616,2]
[310973049,1704838253331,-500.0,0.00035616,2]
[310973051,1704838253340,-189.264126,0.00035616,120]
[310973053,1704838253348,-611.97546667,0.00035619,7]
[310973055,1704838253358,-269.81507495,0.00035619,7]
[310973057,1704838253367,-500.0,0.00035619,7]
[310973059,1704838253375,-4000.0,0.00035798,2]
[310973061,1704838253384,-2000.0,0.000358,5]
[310973063,1704838253393,-160.0,0.00035807,3]
[310973065,1704838253404,-2000.0,0.0003581,5]
[310973067,1704838253413,-2000.0,0.0003582,5]
[310973069,1704838253424,-2000.0,0.0003583,5]
[310973071,1704838253433,-2000.0,0.0003584,5]
[310973073,1704838253442,-2000.0,0.0003585,5]
[310973075,1704838253452,-2000.0,0.0003586,5]
[310973077,1704838253461,-2000.0,0.0003587,5]
[310973079,1704838253470,-2000.0,0.0003588,5]
[310973081,1704838253479,-500.0,0.0003589,2]
[310973083,1704838253488,-500.0,0.0003589,2]
[310973085,1704838253497,-500.0,0.0003589,2]
[310973087,1704838253506,-500.0,0.0003589,2]
[310973088,1704838253515,-500.0,0.0003589,2]
[310973090,1704838253524,-500.0,0.0003589,2]
[310973092,1704838253534,-500.0,0.0003589,2]
[310973094,1704838253543,-524.03,0.0003589,2]
[310973096,1704838253552,-500.0,0.0003589,2]
[310973098,1704838253561,-500.0,0.0003589,2]
[310973100,1704838253570,-535.89,0.0003589,2]
[310973102,1704838253578,-500.0,0.0003589,2]
[310973104,1704838253587,-500.0,0.0003589,2]
[310973106,1704838253596,-500.0,0.0003589,2]
[310973108,1704838253605,-500.0,0.0003589,2]
[310973110,1704838253615,-779.47,0.0003589,2]
[310973112,1704838253624,-500.0,0.0003589,2]
[310973114,1704838253633,-500.0,0.0003589,2]
[310973116,1704838253642,-500.0,0.0003589,2]
[310973118,1704838253652,-500.0,0.0003589,2]
[310973119,1704838253660,-500.0,0.0003589,2]
[310973121,1704838253669,-500.0,0.0003589,2]
[310973123,1704838253679,-500.0,0.0003589,2]
[310973125,1704838253688,-500.0,0.0003589,2]
[310973127,1704838253697,-500.0,0.0003589,2]
[310973129,1704838253707,-500.0,0.0003589,2]
[310973131,1704838253716,-503.57169132,0.0003589,2]
[310973133,1704838253725,-500.0,0.0003589,2]
[310973135,1704838253734,-286.75818751,0.0003589,2]
[310973137,1704838253744,-394.95249118,0.0003589,2]
[310973139,1704838253753,-500.0,0.0003589,2]
[310973141,1704838253762,-500.0,0.0003589,2]
[310973143,1704838253771,-500.0,0.0003589,2]
[310973145,1704838253780,-500.0,0.0003589,2]
[310973147,1704838253792,-3947.0,0.0003589,2]
[310973149,1704838253801,-516.41,0.0003589,2]
[310973151,1704838253810,-500.0,0.0003589,2]
[310973153,1704838253821,-2000.0,0.0003589,5]
[310973155,1704838253830,-500.0,0.0003589,2]